[Event "Early-Titled-Tuesday-Blitz-November-28-2023"]
[Site "Chess.com"]
[Date "2023.11.28"]
[Round "8"]
[White "Aygehovit1992"]
[Black "vi_pranav"]
[Result "1-0"]
[WhiteElo "2734"]
[BlackElo "3020"]
[TimeControl "180+1"]
[EndTime "9:36:32 PST"]
[Termination "Aygehovit1992 won by resignation"]

1. e4 {[%clk 0:03:00.9]} 1... e5 {[%clk 0:02:55.1]} 2. Nf3 {[%clk 0:03:01.4]}
2... Nc6 {[%clk 0:02:55.5]} 3. Bb5 {[%clk 0:03:02.1]} 3... a6 {[%clk 0:02:56.1]}
4. Ba4 {[%clk 0:03:02.8]} 4... Nf6 {[%clk 0:02:56.9]} 5. O-O {[%clk 0:03:03.4]}
5... b5 {[%clk 0:02:57.5]} 6. Bb3 {[%clk 0:03:03.5]} 6... Bc5 {[%clk 0:02:58.3]}
7. c3 {[%clk 0:03:03.5]} 7... d6 {[%clk 0:02:58.8]} 8. d4 {[%clk 0:03:03.8]}
8... Bb6 {[%clk 0:02:59.6]} 9. Be3 {[%clk 0:03:03.6]} 9... O-O {[%clk
0:02:59.2]} 10. Nbd2 {[%clk 0:03:03.1]} 10... h6 {[%clk 0:02:59.4]} 11. h3
{[%clk 0:03:02.1]} 11... Re8 {[%clk 0:02:59.7]} 12. Bc2 {[%clk 0:03:00.9]} 12...
Bb7 {[%clk 0:02:58.8]} 13. Re1 {[%clk 0:03:00.5]} 13... exd4 {[%clk 0:02:53]}
14. Nxd4 {[%clk 0:02:50.2]} 14... Nxd4 {[%clk 0:02:41.6]} 15. cxd4 {[%clk
0:02:49.2]} 15... Nxe4 {[%clk 0:02:25.2]} 16. Bxe4 {[%clk 0:02:42.7]} 16... Bxe4
{[%clk 0:02:21.1]} 17. Bxh6 {[%clk 0:02:41.5]} 17... Bg6 {[%clk 0:01:54.4]} 18.
Rxe8+ {[%clk 0:02:41.5]} 18... Qxe8 {[%clk 0:01:55.3]} 19. Be3 {[%clk
0:02:41.6]} 19... Qe6 {[%clk 0:01:54.4]} 20. Qg4 {[%clk 0:02:37.9]} 20... Qd5
{[%clk 0:01:46.1]} 21. a4 {[%clk 0:02:36.7]} 21... Re8 {[%clk 0:01:44.9]} 22. a5
{[%clk 0:02:37]} 22... Ba7 {[%clk 0:01:37.4]} 23. Qd7 {[%clk 0:02:35.6]} 23...
f6 {[%clk 0:01:17.9]} 24. Rc1 {[%clk 0:02:21.3]} 24... Bb8 {[%clk 0:01:11.7]}
25. Qc6 {[%clk 0:02:10.2]} 25... Qxc6 {[%clk 0:01:11.3]} 26. Rxc6 {[%clk
0:02:09.7]} 26... Bf7 {[%clk 0:01:12.2]} 27. Nb1 {[%clk 0:01:48.3]} 27... b4
{[%clk 0:01:03.3]} 28. Nd2 {[%clk 0:01:41.4]} 28... Bd5 {[%clk 0:01:01.8]} 29.
Rc1 {[%clk 0:01:41]} 29... Kf7 {[%clk 0:00:51.6]} 30. Nf3 {[%clk 0:01:31.5]}
30... Ke7 {[%clk 0:00:31.3]} 31. Ne1 {[%clk 0:01:31.2]} 31... Be4 {[%clk
0:00:17.7]} 32. f3 {[%clk 0:01:31.1]} 32... Bh7 {[%clk 0:00:16.9]} 33. Kf2
{[%clk 0:01:24.6]} 33... Kd7 {[%clk 0:00:16]} 34. Rc4 {[%clk 0:01:21.9]} 34...
c6 {[%clk 0:00:08]} 35. Rxb4 {[%clk 0:01:21.1]} 35... Bc7 {[%clk 0:00:08.6]} 36.
Ra4 {[%clk 0:01:05.3]} 36... Rb8 {[%clk 0:00:06.5]} 37. b4 {[%clk 0:01:05.2]}
37... Rb5 {[%clk 0:00:02.7]} 38. g4 {[%clk 0:00:57.4]} 38... d5 {[%clk
0:00:01.8]} 39. Bd2 {[%clk 0:00:52.5]} 39... Bb8 {[%clk 0:00:01.5]} 40. Bc3
{[%clk 0:00:47.2]} 40... Bd6 {[%clk 0:00:01.4]} 41. Ke3 {[%clk 0:00:45.5]} 41...
Rb8 {[%clk 0:00:01.9]} 42. h4 {[%clk 0:00:27.6]} 42... Bg6 {[%clk 0:00:01.6]}
43. h5 {[%clk 0:00:27.1]} 43... Bh7 {[%clk 0:00:02.3]} 44. Nd3 {[%clk
0:00:26.7]} 44... Re8+ {[%clk 0:00:02.1]} 45. Kd2 {[%clk 0:00:27.1]} 45... Bxd3
{[%clk 0:00:02.4]} 46. Kxd3 {[%clk 0:00:28]} 46... Bf4 {[%clk 0:00:03]} 47. Bd2
{[%clk 0:00:27.1]} 47... Bxd2 {[%clk 0:00:02.6]} 48. Kxd2 {[%clk 0:00:28]} 48...
Kd6 {[%clk 0:00:03.1]} 49. Ra3 {[%clk 0:00:26.3]} 49... Rb8 {[%clk 0:00:03.6]}
50. Rb3 {[%clk 0:00:26.2]} 50... Rb7 {[%clk 0:00:03.8]} 51. Ke3 {[%clk
0:00:25.3]} 51... Ke6 {[%clk 0:00:03.2]} 52. Kf4 {[%clk 0:00:25.6]} 52... Kf7
{[%clk 0:00:02]} 53. Kf5 {[%clk 0:00:25.3]} 53... Re7 {[%clk 0:00:02.4]} 54. Rc3
{[%clk 0:00:24.7]} 54... Re6 {[%clk 0:00:02.8]} 55. f4 {[%clk 0:00:22.6]} 55...
Rd6 {[%clk 0:00:02.5]} 56. Re3 {[%clk 0:00:20.7]} 56... Rd8 {[%clk 0:00:01.7]}
57. Re6 {[%clk 0:00:20.8]} 57... Rb8 {[%clk 0:00:01.5]} 58. Rxc6 {[%clk
0:00:20.4]} 58... Rxb4 {[%clk 0:00:02.4]} 59. Rc7+ {[%clk 0:00:19.3]} 59... Kf8
{[%clk 0:00:02.2]} 60. Kg6 {[%clk 0:00:18.4]} 60... Rxd4 {[%clk 0:00:02.3]} 61.
Rf7+ {[%clk 0:00:18.6]} 61... Ke8 {[%clk 0:00:02]} 62. Rxg7 {[%clk 0:00:17.4]}
62... Rxf4 {[%clk 0:00:02.4]} 63. h6 {[%clk 0:00:13.3]} 63... Rxg4+ {[%clk
0:00:02.6]} 64. Kxf6 {[%clk 0:00:13.9]} 64... Rh4 {[%clk 0:00:03]} 65. h7 {[%clk
0:00:14.1]} 65... Rh6+ {[%clk 0:00:02.5]} 66. Kg5 {[%clk 0:00:14.5]} 66... Rh1
{[%clk 0:00:02.4]} 67. Rg8+ {[%clk 0:00:15]} 67... Kf7 {[%clk 0:00:03.1]} 68.
h8=Q {[%clk 0:00:15.3]} 68... Rg1+ {[%clk 0:00:03.7]} 69. Kf5 {[%clk 0:00:15.3]}
69... Rxg8 {[%clk 0:00:04.4]} 70. Qf6+ {[%clk 0:00:15.6]} 70... Ke8 {[%clk
0:00:04.5]} 71. Qxa6 {[%clk 0:00:15.6]} 1-0

[Event "Early-Titled-Tuesday-Blitz-November-28-2023"]
[Site "Chess.com"]
[Date "2023.11.28"]
[Round "8"]
[White "BardArtem"]
[Black "jcibarra"]
[Result "1/2-1/2"]
[WhiteElo "2770"]
[BlackElo "2903"]
[TimeControl "180+1"]
[EndTime "9:36:34 PST"]
[Termination "Game drawn by repetition"]

1. e4 {[%clk 0:02:57.7]} 1... c5 {[%clk 0:02:59.6]} 2. c3 {[%clk 0:02:57.6]}
2... Nf6 {[%clk 0:02:59.5]} 3. e5 {[%clk 0:02:57.8]} 3... Nd5 {[%clk 0:02:59.8]}
4. Nf3 {[%clk 0:02:56.4]} 4... Nc6 {[%clk 0:02:59.5]} 5. d4 {[%clk 0:02:54.7]}
5... cxd4 {[%clk 0:02:59.9]} 6. cxd4 {[%clk 0:02:55.6]} 6... d6 {[%clk
0:02:59.3]} 7. Bc4 {[%clk 0:02:54.8]} 7... dxe5 {[%clk 0:02:59.5]} 8. dxe5
{[%clk 0:02:54.5]} 8... Be6 {[%clk 0:03:00.1]} 9. O-O {[%clk 0:02:48.9]} 9... g6
{[%clk 0:03:00]} 10. Ng5 {[%clk 0:02:41.8]} 10... Bg7 {[%clk 0:02:59.1]} 11.
Nxe6 {[%clk 0:02:42.1]} 11... fxe6 {[%clk 0:03:00]} 12. f4 {[%clk 0:02:37.5]}
12... O-O {[%clk 0:02:56.8]} 13. Nc3 {[%clk 0:02:32.1]} 13... Qb6+ {[%clk
0:02:48.7]} 14. Kh1 {[%clk 0:02:32]} 14... Rad8 {[%clk 0:02:15.3]} 15. Nxd5
{[%clk 0:02:20.2]} 15... exd5 {[%clk 0:02:15.9]} 16. Bd3 {[%clk 0:02:04.1]}
16... e6 {[%clk 0:02:09.4]} 17. b3 {[%clk 0:01:57.3]} 17... Rf7 {[%clk
0:01:51.5]} 18. Bb2 {[%clk 0:01:53.9]} 18... Rdf8 {[%clk 0:01:43.6]} 19. g3
{[%clk 0:01:46.5]} 19... a5 {[%clk 0:01:35.4]} 20. Rc1 {[%clk 0:01:37.7]} 20...
Qe3 {[%clk 0:01:26.1]} 21. Re1 {[%clk 0:01:23.5]} 21... Qf2 {[%clk 0:01:22.8]}
22. Re2 {[%clk 0:01:10.2]} 22... Qf3+ {[%clk 0:01:12.6]} 23. Kg1 {[%clk
0:00:55.6]} 23... g5 {[%clk 0:01:12]} 24. f5 {[%clk 0:00:32.1]} 24... Rxf5
{[%clk 0:00:41.6]} 25. Bxf5 {[%clk 0:00:30.5]} 25... Rxf5 {[%clk 0:00:42.5]} 26.
Qe1 {[%clk 0:00:21.6]} 26... Qg4 {[%clk 0:00:22.1]} 27. Rf2 {[%clk 0:00:18.3]}
27... h6 {[%clk 0:00:13.8]} 28. Qe2 {[%clk 0:00:16.6]} 28... Qxe2 {[%clk
0:00:10.4]} 29. Rxe2 {[%clk 0:00:17.5]} 29... Rf7 {[%clk 0:00:05.1]} 30. Kg2
{[%clk 0:00:16.7]} 30... Rd7 {[%clk 0:00:05.2]} 31. h4 {[%clk 0:00:14.2]} 31...
d4 {[%clk 0:00:05.8]} 32. hxg5 {[%clk 0:00:14.6]} 32... hxg5 {[%clk 0:00:06.5]}
33. Re4 {[%clk 0:00:15.4]} 33... d3 {[%clk 0:00:06.1]} 34. Rd1 {[%clk
0:00:15.4]} 34... Bf8 {[%clk 0:00:04.3]} 35. Rg4 {[%clk 0:00:14]} 35... Be7
{[%clk 0:00:03.9]} 36. Bc1 {[%clk 0:00:11.1]} 36... Nxe5 {[%clk 0:00:03.5]} 37.
Re4 {[%clk 0:00:11.7]} 37... Bf6 {[%clk 0:00:03.1]} 38. Bb2 {[%clk 0:00:11.5]}
38... Rd5 {[%clk 0:00:02.5]} 39. Bxe5 {[%clk 0:00:06.1]} 39... Bxe5 {[%clk
0:00:02.7]} 40. Re3 {[%clk 0:00:06.8]} 40... d2 {[%clk 0:00:03]} 41. Re2 {[%clk
0:00:06]} 41... Bc3 {[%clk 0:00:02.9]} 42. Rxe6 {[%clk 0:00:06.7]} 42... b5
{[%clk 0:00:02.5]} 43. Re4 {[%clk 0:00:05.8]} 43... b4 {[%clk 0:00:02.6]} 44.
Kf3 {[%clk 0:00:06.3]} 44... Kf7 {[%clk 0:00:02.9]} 45. Kg4 {[%clk 0:00:06.8]}
45... Kf6 {[%clk 0:00:03.3]} 46. Re2 {[%clk 0:00:04.7]} 46... Rd4+ {[%clk
0:00:02.9]} 47. Kf3 {[%clk 0:00:04.9]} 47... g4+ {[%clk 0:00:02.9]} 48. Kf2
{[%clk 0:00:03.6]} 48... Kf5 {[%clk 0:00:03.1]} 49. Re8 {[%clk 0:00:04.2]} 49...
Re4 {[%clk 0:00:02.6]} 50. Rxe4 {[%clk 0:00:03]} 50... Kxe4 {[%clk 0:00:03.5]}
51. Ke2 {[%clk 0:00:03.9]} 51... Be5 {[%clk 0:00:02.4]} 52. Rxd2 {[%clk
0:00:03.3]} 52... Bxg3 {[%clk 0:00:02.8]} 53. Rd8 {[%clk 0:00:04]} 53... Be5
{[%clk 0:00:02.9]} 54. Ra8 {[%clk 0:00:03.6]} 54... Bc7 {[%clk 0:00:03.5]} 55.
Ra7 {[%clk 0:00:03]} 55... Bb6 {[%clk 0:00:03.7]} 56. Ra6 {[%clk 0:00:03.7]}
56... Bd8 {[%clk 0:00:04.3]} 57. Rc6 {[%clk 0:00:04.4]} 57... g3 {[%clk
0:00:03.7]} 58. Rg6 {[%clk 0:00:04.7]} 58... Bc7 {[%clk 0:00:03.3]} 59. Rg4+
{[%clk 0:00:05]} 59... Bf4 {[%clk 0:00:03.7]} 60. Rg8 {[%clk 0:00:02.8]} 60...
Kd4 {[%clk 0:00:03.1]} 61. Kf3 {[%clk 0:00:02.7]} 61... Bd6 {[%clk 0:00:02.9]}
62. Rd8 {[%clk 0:00:02.6]} 62... Kd5 {[%clk 0:00:02.8]} 63. Ra8 {[%clk
0:00:03.1]} 63... Bc7 {[%clk 0:00:03.3]} 64. Ra6 {[%clk 0:00:03.3]} 64... Kc5
{[%clk 0:00:03.6]} 65. Rg6 {[%clk 0:00:02.9]} 65... Kd4 {[%clk 0:00:03]} 66. Rg5
{[%clk 0:00:03.3]} 66... Kc3 {[%clk 0:00:02.5]} 67. Rc5+ {[%clk 0:00:03.7]}
67... Kb2 {[%clk 0:00:03.1]} 68. Rxc7 {[%clk 0:00:04.6]} 68... Kxa2 {[%clk
0:00:03.9]} 69. Rc5 {[%clk 0:00:02.7]} 69... Kxb3 {[%clk 0:00:04.2]} 70. Rxa5
{[%clk 0:00:03.4]} 70... Kc2 {[%clk 0:00:04.7]} 71. Rc5+ {[%clk 0:00:03.4]}
71... Kd3 {[%clk 0:00:05.1]} 72. Rb5 {[%clk 0:00:02.2]} 72... Kc3 {[%clk
0:00:05.5]} 73. Kxg3 {[%clk 0:00:02]} 73... b3 {[%clk 0:00:05.8]} 74. Rc5+
{[%clk 0:00:02.3]} 74... Kd2 {[%clk 0:00:06.1]} 75. Rb5 {[%clk 0:00:02]} 75...
Kc2 {[%clk 0:00:06.5]} 76. Rc5+ {[%clk 0:00:02.5]} 76... Kd2 {[%clk 0:00:06.7]}
77. Rd5+ {[%clk 0:00:02.9]} 77... Kc2 {[%clk 0:00:07.3]} 78. Rc5+ {[%clk
0:00:03.5]} 78... Kd2 {[%clk 0:00:07.9]} 1/2-1/2

[Event "Early-Titled-Tuesday-Blitz-November-28-2023"]
[Site "Chess.com"]
[Date "2023.11.28"]
[Round "8"]
[White "wadsy27"]
[Black "alexrustemov"]
[Result "1-0"]
[WhiteElo "2671"]
[BlackElo "2862"]
[TimeControl "180+1"]
[EndTime "9:36:36 PST"]
[Termination "wadsy27 won on time"]

1. e4 {[%clk 0:03:00.9]} 1... e6 {[%clk 0:02:59.9]} 2. d4 {[%clk 0:02:59.8]}
2... d5 {[%clk 0:03:00.4]} 3. exd5 {[%clk 0:02:58]} 3... exd5 {[%clk 0:03:00.5]}
4. c4 {[%clk 0:02:58.7]} 4... Nf6 {[%clk 0:02:58.2]} 5. Nf3 {[%clk 0:02:58.4]}
5... Bb4+ {[%clk 0:02:57.9]} 6. Nc3 {[%clk 0:02:56.6]} 6... O-O {[%clk
0:02:58.1]} 7. Be2 {[%clk 0:02:56.3]} 7... dxc4 {[%clk 0:02:58.2]} 8. O-O {[%clk
0:02:56.5]} 8... Nc6 {[%clk 0:02:58]} 9. Bxc4 {[%clk 0:02:34.6]} 9... Bg4 {[%clk
0:02:57.4]} 10. Be3 {[%clk 0:02:32.4]} 10... Qd7 {[%clk 0:02:50.7]} 11. a3
{[%clk 0:01:53.7]} 11... Bd6 {[%clk 0:02:48.5]} 12. h3 {[%clk 0:01:46.1]} 12...
Bh5 {[%clk 0:02:38.5]} 13. Be2 {[%clk 0:01:22.3]} 13... Rad8 {[%clk 0:02:37.2]}
14. Rc1 {[%clk 0:01:21.6]} 14... h6 {[%clk 0:02:30.3]} 15. Qb3 {[%clk
0:01:12.1]} 15... Na5 {[%clk 0:02:18.6]} 16. Qa2 {[%clk 0:01:12]} 16... Rfe8
{[%clk 0:02:14.8]} 17. Bb5 {[%clk 0:01:00]} 17... c6 {[%clk 0:02:11.7]} 18. Be2
{[%clk 0:00:59.7]} 18... b6 {[%clk 0:01:45.5]} 19. b4 {[%clk 0:00:53.9]} 19...
Nb7 {[%clk 0:01:45.2]} 20. Rfd1 {[%clk 0:00:54.2]} 20... Rc8 {[%clk 0:01:12.3]}
21. d5 {[%clk 0:00:47.8]} 21... Bxf3 {[%clk 0:00:58.1]} 22. Bxf3 {[%clk
0:00:44.3]} 22... c5 {[%clk 0:00:58.5]} 23. Be2 {[%clk 0:00:33.1]} 23... Qe7
{[%clk 0:00:55.9]} 24. Bb5 {[%clk 0:00:28.4]} 24... Qe5 {[%clk 0:00:53.8]} 25.
g3 {[%clk 0:00:17.2]} 25... Re7 {[%clk 0:00:46.7]} 26. Ba6 {[%clk 0:00:14.4]}
26... Qh5 {[%clk 0:00:44.9]} 27. Kg2 {[%clk 0:00:11.3]} 27... Rce8 {[%clk
0:00:44.3]} 28. Bxb7 {[%clk 0:00:10.3]} 28... Rxb7 {[%clk 0:00:44.2]} 29. Nb5
{[%clk 0:00:10.9]} 29... Rd7 {[%clk 0:00:28.9]} 30. Nxd6 {[%clk 0:00:10.4]}
30... Rxd6 {[%clk 0:00:29.4]} 31. bxc5 {[%clk 0:00:10.6]} 31... bxc5 {[%clk
0:00:29.3]} 32. Bxc5 {[%clk 0:00:10.9]} 32... Rxd5 {[%clk 0:00:28.9]} 33. Rxd5
{[%clk 0:00:11.1]} 33... Nxd5 {[%clk 0:00:26.6]} 34. Bxa7 {[%clk 0:00:11.2]}
34... Qe5 {[%clk 0:00:21.7]} 35. Rc5 {[%clk 0:00:05.3]} 35... Qe4+ {[%clk
0:00:21.4]} 36. Kh2 {[%clk 0:00:05.6]} 36... Nf6 {[%clk 0:00:18.7]} 37. Qc4
{[%clk 0:00:05.4]} 37... Qe1 {[%clk 0:00:18.1]} 38. Rc8 {[%clk 0:00:03.9]} 38...
Rxc8 {[%clk 0:00:13.1]} 39. Qxc8+ {[%clk 0:00:04.1]} 39... Kh7 {[%clk
0:00:13.8]} 40. Qc2+ {[%clk 0:00:04.7]} 40... Kg8 {[%clk 0:00:13.7]} 41. Bd4
{[%clk 0:00:04]} 41... Ne4 {[%clk 0:00:11.2]} 42. Qc8+ {[%clk 0:00:03.8]} 42...
Kh7 {[%clk 0:00:11.3]} 43. Qf5+ {[%clk 0:00:03.9]} 43... Kg8 {[%clk 0:00:11.6]}
44. Qe5 {[%clk 0:00:03.9]} 44... f6 {[%clk 0:00:10.3]} 45. Qd5+ {[%clk
0:00:03.2]} 45... Kh7 {[%clk 0:00:10.4]} 46. Qf5+ {[%clk 0:00:03.4]} 46... Kg8
{[%clk 0:00:10.8]} 47. Be3 {[%clk 0:00:03.3]} 47... Ng5 {[%clk 0:00:05.3]} 48.
h4 {[%clk 0:00:03]} 48... Nf7 {[%clk 0:00:04.8]} 49. a4 {[%clk 0:00:02.8]} 49...
Qa1 {[%clk 0:00:04]} 50. Qc8+ {[%clk 0:00:02.5]} 50... Kh7 {[%clk 0:00:04]} 51.
Qf5+ {[%clk 0:00:02.4]} 51... Kg8 {[%clk 0:00:04.1]} 52. a5 {[%clk 0:00:02.7]}
52... Ne5 {[%clk 0:00:04.3]} 53. Qe6+ {[%clk 0:00:02.8]} 53... Kh7 {[%clk
0:00:04.6]} 54. a6 {[%clk 0:00:03]} 54... Qa4 {[%clk 0:00:03.4]} 55. Qf5+ {[%clk
0:00:02.7]} 55... Kg8 {[%clk 0:00:03.2]} 56. a7 {[%clk 0:00:03.1]} 56... Qc6
{[%clk 0:00:03.1]} 57. Qb1 {[%clk 0:00:02.2]} 57... Nf3+ {[%clk 0:00:02.8]} 58.
Kh3 {[%clk 0:00:02.6]} 58... Ne5 {[%clk 0:00:02.2]} 59. Qb8+ {[%clk 0:00:02.2]}
59... Kh7 {[%clk 0:00:02.5]} 60. Kh2 {[%clk 0:00:02.1]} 60... Nf3+ {[%clk
0:00:02.4]} 61. Kh3 {[%clk 0:00:01.7]} 61... Qe6+ {[%clk 0:00:02.5]} 62. Kg2
{[%clk 0:00:01.7]} 62... Qg4 {[%clk 0:00:02.8]} 63. Qb1+ {[%clk 0:00:01.8]}
63... f5 {[%clk 0:00:02.4]} 64. a8=Q {[%clk 0:00:02.5]} 64... Nxh4+ {[%clk
0:00:02.8]} 65. Kf1 {[%clk 0:00:02.9]} 65... Qh3+ {[%clk 0:00:02.6]} 66. Ke2
{[%clk 0:00:03.1]} 66... Qg4+ {[%clk 0:00:02.2]} 67. Kd2 {[%clk 0:00:03.6]}
67... Nf3+ {[%clk 0:00:02.6]} 68. Kc2 {[%clk 0:00:03.8]} 68... Qc4+ {[%clk
0:00:02.8]} 69. Kb2 {[%clk 0:00:04]} 69... Qb4+ {[%clk 0:00:03.3]} 70. Ka1
{[%clk 0:00:04.3]} 70... Qc3+ {[%clk 0:00:03.4]} 71. Qb2 {[%clk 0:00:04.6]}
71... Qe1+ {[%clk 0:00:03.7]} 72. Ka2 {[%clk 0:00:05]} 72... Nd2 {[%clk
0:00:02.7]} 73. Qxd2 {[%clk 0:00:04.3]} 73... Qf1 {[%clk 0:00:02.8]} 74. Qb2
{[%clk 0:00:04.2]} 74... Qc4+ {[%clk 0:00:02.8]} 75. Qb3 {[%clk 0:00:04.4]}
75... Qe2+ {[%clk 0:00:03.3]} 76. Ka3 {[%clk 0:00:04.8]} 76... Qa6+ {[%clk
0:00:03]} 77. Qxa6 {[%clk 0:00:04.7]} 1-0

[Event "Early-Titled-Tuesday-Blitz-November-28-2023"]
[Site "Chess.com"]
[Date "2023.11.28"]
[Round "8"]
[White "carloseduar100"]
[Black "lluiss"]
[Result "1-0"]
[WhiteElo "2278"]
[BlackElo "2206"]
[TimeControl "180+1"]
[EndTime "9:36:47 PST"]
[Termination "carloseduar100 won on time"]

1. g3 {[%clk 0:02:57.5]} 1... d5 {[%clk 0:02:59.1]} 2. Bg2 {[%clk 0:02:52.3]}
2... Nf6 {[%clk 0:02:59.6]} 3. Nf3 {[%clk 0:02:51.1]} 3... g6 {[%clk 0:02:59.6]}
4. O-O {[%clk 0:02:50.5]} 4... Bg7 {[%clk 0:03:00.1]} 5. d4 {[%clk 0:02:50.7]}
5... O-O {[%clk 0:03:00]} 6. c3 {[%clk 0:02:50.8]} 6... b6 {[%clk 0:02:56.9]} 7.
Nbd2 {[%clk 0:02:51.1]} 7... Bb7 {[%clk 0:02:57]} 8. Re1 {[%clk 0:02:50.9]} 8...
Nbd7 {[%clk 0:02:54.2]} 9. Ne5 {[%clk 0:02:51.5]} 9... c5 {[%clk 0:02:45.1]} 10.
Ndf3 {[%clk 0:02:45.9]} 10... Nxe5 {[%clk 0:02:02.9]} 11. dxe5 {[%clk
0:02:42.8]} 11... Ne8 {[%clk 0:01:38.9]} 12. h4 {[%clk 0:02:32.1]} 12... Nc7
{[%clk 0:01:34.3]} 13. a4 {[%clk 0:02:17.2]} 13... a6 {[%clk 0:01:28.3]} 14. Nh2
{[%clk 0:02:10.3]} 14... Rb8 {[%clk 0:01:22.3]} 15. f4 {[%clk 0:02:08.8]} 15...
f5 {[%clk 0:01:18.1]} 16. Nf3 {[%clk 0:02:02.5]} 16... Ne6 {[%clk 0:01:13.9]}
17. e3 {[%clk 0:01:50.1]} 17... Qd7 {[%clk 0:01:10.7]} 18. Kh2 {[%clk 0:01:43]}
18... Rfd8 {[%clk 0:01:10.5]} 19. b3 {[%clk 0:01:41.9]} 19... b5 {[%clk
0:01:01.5]} 20. axb5 {[%clk 0:01:41.7]} 20... axb5 {[%clk 0:01:01.6]} 21. Bb2
{[%clk 0:01:38.9]} 21... Ra8 {[%clk 0:00:54.8]} 22. Qc2 {[%clk 0:01:30.9]} 22...
Bc6 {[%clk 0:00:52.3]} 23. Ng5 {[%clk 0:01:22.1]} 23... Nxg5 {[%clk 0:00:45.4]}
24. hxg5 {[%clk 0:01:21.7]} 24... h6 {[%clk 0:00:45.5]} 25. gxh6 {[%clk
0:01:21.6]} 25... Bxh6 {[%clk 0:00:45.4]} 26. Rxa8 {[%clk 0:01:20.9]} 26... Rxa8
{[%clk 0:00:43.9]} 27. Ra1 {[%clk 0:01:21.7]} 27... Qb7 {[%clk 0:00:42.7]} 28.
Qb1 {[%clk 0:01:14.7]} 28... e6 {[%clk 0:00:40.7]} 29. Rxa8+ {[%clk 0:01:12.9]}
29... Qxa8 {[%clk 0:00:40.7]} 30. Qa1 {[%clk 0:01:13.8]} 30... Qxa1 {[%clk
0:00:40.6]} 31. Bxa1 {[%clk 0:01:14.7]} 31... Bf8 {[%clk 0:00:38.2]} 32. g4
{[%clk 0:01:11.7]} 32... Kf7 {[%clk 0:00:37.2]} 33. Kg3 {[%clk 0:01:11.6]} 33...
Ke8 {[%clk 0:00:36.8]} 34. Bf1 {[%clk 0:01:11.3]} 34... Kd7 {[%clk 0:00:36.1]}
35. c4 {[%clk 0:01:11.4]} 35... dxc4 {[%clk 0:00:33.7]} 36. bxc4 {[%clk
0:01:11.7]} 36... b4 {[%clk 0:00:34.3]} 37. Kh4 {[%clk 0:01:10.8]} 37... Be7+
{[%clk 0:00:33.9]} 38. Kg3 {[%clk 0:01:07.5]} 38... Be4 {[%clk 0:00:33.1]} 39.
Bb2 {[%clk 0:01:04.5]} 39... Bd8 {[%clk 0:00:30.5]} 40. Be2 {[%clk 0:01:01.8]}
40... Bc2 {[%clk 0:00:28.1]} 41. Kf2 {[%clk 0:00:51.7]} 41... Bh4+ {[%clk
0:00:27.4]} 42. Kf1 {[%clk 0:00:46.6]} 42... Bg3 {[%clk 0:00:27.3]} 43. gxf5
{[%clk 0:00:45.2]} 43... gxf5 {[%clk 0:00:26.8]} 44. Bf3 {[%clk 0:00:44.3]}
44... Bh4 {[%clk 0:00:24.9]} 45. Ke2 {[%clk 0:00:43.6]} 45... Bd8 {[%clk
0:00:20]} 46. Kd2 {[%clk 0:00:42.6]} 46... b3 {[%clk 0:00:20.1]} 47. Bc3 {[%clk
0:00:39.4]} 47... Bb6 {[%clk 0:00:19]} 48. Bd1 {[%clk 0:00:26.6]} 48... Bxd1
{[%clk 0:00:15]} 49. Kxd1 {[%clk 0:00:27.5]} 49... Ba7 {[%clk 0:00:08.8]} 50.
Kc1 {[%clk 0:00:27.7]} 50... Kc6 {[%clk 0:00:08.6]} 51. Kb2 {[%clk 0:00:27.9]}
51... Bb6 {[%clk 0:00:09.5]} 52. Kxb3 {[%clk 0:00:28.3]} 52... Bd8 {[%clk
0:00:09]} 53. Kc2 {[%clk 0:00:24.6]} 53... Be7 {[%clk 0:00:09]} 54. Kd3 {[%clk
0:00:25]} 54... Bd8 {[%clk 0:00:04.5]} 55. Ke2 {[%clk 0:00:23.9]} 55... Be7
{[%clk 0:00:04.5]} 56. Kf3 {[%clk 0:00:24.2]} 56... Kd7 {[%clk 0:00:04.8]} 57.
Ba5 {[%clk 0:00:22.7]} 57... Ke8 {[%clk 0:00:04.1]} 58. Bb6 {[%clk 0:00:21.5]}
58... Kd7 {[%clk 0:00:03.9]} 59. e4 {[%clk 0:00:21.5]} 59... Kc6 {[%clk
0:00:03.6]} 60. Ba5 {[%clk 0:00:20.1]} 60... Kd7 {[%clk 0:00:03.9]} 61. exf5
{[%clk 0:00:12.9]} 61... exf5 {[%clk 0:00:04]} 62. Ke2 {[%clk 0:00:13.5]} 62...
Ke6 {[%clk 0:00:03.7]} 63. Kd3 {[%clk 0:00:13.5]} 63... Kd7 {[%clk 0:00:03.8]}
64. Bd2 {[%clk 0:00:10.5]} 64... Kc6 {[%clk 0:00:03.7]} 65. Kc2 {[%clk
0:00:10.6]} 65... Kd7 {[%clk 0:00:03.9]} 66. Kb3 {[%clk 0:00:10.8]} 66... Kc6
{[%clk 0:00:04.2]} 67. Ka4 {[%clk 0:00:11.7]} 67... Bd8 {[%clk 0:00:04.5]} 68.
Ba5 {[%clk 0:00:10.7]} 68... Be7 {[%clk 0:00:04.2]} 69. Kb3 {[%clk 0:00:10.1]}
69... Bh4 {[%clk 0:00:03.8]} 70. Bd2 {[%clk 0:00:10.1]} 70... Be7 {[%clk
0:00:03.4]} 71. Ka4 {[%clk 0:00:10.1]} 71... Bd8 {[%clk 0:00:03.4]} 72. Bc3
{[%clk 0:00:10.1]} 72... Be7 {[%clk 0:00:03.1]} 73. Ka5 {[%clk 0:00:08.5]} 73...
Bd8+ {[%clk 0:00:03.1]} 74. Ka6 {[%clk 0:00:08.7]} 74... Be7 {[%clk 0:00:02]}
75. Ka7 {[%clk 0:00:08]} 75... Bh4 {[%clk 0:00:02]} 76. Kb8 {[%clk 0:00:07.5]}
1-0